Workbook

Sheet Triangle
E2: Instructions: Populate yellow cells. Total Sand, Silt, and Clay must equal 100%. Sand fractions are optional (only used with sands, loamy sands, and sandy loams if known), but if used must equal Total Sand. | J2: Point | K2: Sand | L2: Clay | M2: Silt | N2: VCS | O2: CS | P2: MS | Q2: FS | R2: VFS | S2: X | T2: Y | U2: Texture
J3: 1
J4: 2
J5: 3
J6: 4
J7: 5
J8: 6
E9: Total | G9: Sand (%) | J9: 7
J10: 8
G11: Clay (%) | J11: 9
J12: 10
G13: Silt (%) | H13: =IF(H9+H11>1, "ERROR",1-H9-H11) -> 1 | J13: 11
J14: 12
J15: 13
J16: 14
E17: Sand Fractions | G17: Very Coarse Sand (%) | J17: 15
J18: 16
G19: Coarse Sand (%) | J19: 17
J20: 18
G21: Medium Sand (%) | J21: 19
J22: 20
G23: Fine Sand (%) | J23: 21
J24: 22
G25: Very Fine Sand (%) | J25: 23
J26: 24
G27: Sand Fractions Sum | H27: =SUM(H17:H25) -> 0 | J27: 25
E28: =IF(OR(H17>0,H19>0,H21>0,H23>0,H25>0)*AND(H27<>H9),"ERROR: Sand Fractions do not equal Total Sand","") ->  | J28: 26
J29: 27
J30: 28
J31: 29
E32: USDA Texture | G32: =CHOOSE(Calc!A$14,CHOOSE(Calc!A$24, Calc!C$2,Calc!C$18,Calc!C$19,Calc!C$20,Calc!C$21,Calc!C$22,Calc!C$23),CHOOSE(Calc!A$34, Calc!C$3,Calc!C$28,Calc!C$29,Calc!C$30,Calc!C$31,Calc!C$32,Calc!C$33),CHOOSE(Calc!A$50, Calc!C$4,Calc!C$37,Calc!C$38,Calc!C$39,Calc!C$40,Calc!C$41,Calc!C$42,Calc!C$43,Calc!C$44,Calc!C$45,Calc!C$46,Calc!C$47,Calc!C$48,Calc!C$49),Calc!C$5,Calc!C$6,Calc!C$7,Calc!C$8,Calc!C$9,Calc!C$10,Calc!C$11,Calc!C$12,Calc!C$13) -> SILT | J32: 30
J33: 31
J34: 32
J35: 33
J36: 34
A37: Send comments or suggestions to | C37: mark.vanlear@usda.gov | J37: 35
J38: 36
J39: 37
J40: 38
B41: Send comments or suggestions to | C41: mark.vanlear@usda.gov | J41: 39
J42: 40

Sheet Texture Definitions
A1: Texture Definitions
A3: Sands | B3: More than 85 percent sand, the percentage of silt plus 1.5 times the percentage of clay is less than 15.
A4: Coarse sand | B4: A total of 25 percent or more very coarse and coarse sand and less than 50 percent any other single grade of sand.
A5: Sand | B5: A total of 25 percent or more very coarse, coarse, and medium sand, a total of less than 25 percent very coarse and coarse sand, and less than 50 percent fine sand and less than 50 percent very fine sand.
A6: Fine sand | B6: 50 percent or more fine sand; or a total of less than 25 percent very coarse, coarse, and medium sand and less than 50 percent very fine sand.
A7: Very fine sand | B7: 50 percent or more very fine sand.
A9: Loamy sands | B9: Between 70 and 91 percent sand and the percentage of silt plus 1.5 times the percentage of clay is 15 or more; and the percentage of silt plus twice the percentage of clay is less than 30.
A10: Loamy coarse sand | B10: A total of 25 percent or more very coarse and coarse sand and less than 50 percent any other single grade of sand.
A11: Loamy sand | B11: A total of 25 percent or more very coarse, coarse, and medium sand and a total of less than 25 percent very coarse and coarse sand, and less than 50 percent fine sand and less than 50 percent very fine sand.
A12: Loamy fine sand | B12: 50 percent or more fine sand; or less than 50 percent very fine sand and a total of less than 25 percent very coarse, coarse, and medium sand.
A13: Loamy very fine sand | B13: 50 percent or more very fine sand.
A15: Sandy loams | B15: 7 to 20 percent clay, more than 52 percent sand, and the percentage of silt plus twice the percentage of clay is 30 or more; or less than 7 percent clay, less than 50 percent silt, and more than 43 percent sand.
A16: Coarse sandy loam | B16: A total of 25 percent or more very coarse and coarse sand and less than 50 percent any other single grade of sand.
A17: Sandy loam | B17: A total of 30 percent or more very coarse, coarse, and medium sand, but a total of less than 25 percent very coarse and coarse sand and less than 30 percent fine sand and less than 30 percent very fine sand; or a total of 15 percent or less very coarse, coarse, and medium sand, less than 30 percent fine sand and less than 30 percent very fine sand with a total of 40 percent or less fine and very fine sand.
A18: Fine sandy loam | B18: 30 percent or more fine sand and less than 30 percent very fine sand; or a total of 15 to 30 percent very coarse, coarse, and medium sand; or a total of more than 40 percent fine and very fine sand, one half or more of which is fine sand, and a total of 15 percent or less very coarse, coarse, and medium sand.
A19: Very fine sandy loam | B19: 30 percent or more very fine sand and a total of less than 15 percent very coarse, coarse, and medium sand; or more than 40 percent fine and very fine sand, more than one half of which is very fine sand, and total of less than 15 percent very coarse, coarse, and medium sand.
A21: Loam | B21: 7 to 27 percent clay, 28 to 50 percent silt, and 52 percent or less sand.
A22: Silt loam | B22: 50 percent or more silt and 12 to 27 percent clay, or 50 to 80 percent silt and less than 12 percent clay.
A23: Silt | B23: 80 percent or more silt and less than 12 percent clay.
A24: Sandy clay loam | B24: 20 to 35 percent clay, less than 28 percent silt, and more than 45 percent sand.
A25: Clay loam | B25: 27 to 40 percent clay and more than 20 to 46 percent sand.
A26: Silty clay loam | B26: 27 to 40 percent clay and 20 percent or less sand.
A27: Sandy clay | B27: 35 percent or more clay and 45 percent or more sand.
A28: Silty clay | B28: 40 percent or more clay and 40 percent or more silt.
A29: Clay | B29: 40 percent or more clay, 45 percent or less sand, and less than 40 percent silt.

Sheet ChartData (hidden)
A1: Triangle outline | D1: 10/10 Points | H1: 10/10 Clay Lines | K1: 10/10 Silt Lines | N1: 10/10 Sand Lines | Q1: 10/10 Clay Ticks | T1: 10/10 Silt Ticks | W1: 10/10 Sand Ticks | Z1: 20/20 Clay Lines | AC1: 20/20 Silt Lines | AF1: 20/20 Sand Lines | AI1: 20/20 Clay Ticks | AL1: 20/20 Silt Ticks | AO1: 20/20 Sand Ticks | AR1: 100/100 Points | AU1: Sand | AX1: Sandy Clay | BA1: Very Fine | BD1: Tick Labels | BF1: Texture Labels | BJ1: Family | BM1: Sand Textures | BP1: Sand Lables
A2: x | B2: y | D2: H | E2: X | F2: Y | H2: X | I2: Y | K2: X | L2: Y | N2: X | O2: Y | Q2: X | R2: Y | T2: X | U2: Y | W2: X | X2: Y | Z2: X | AA2: Y | AC2: X | AD2: Y | AF2: X | AG2: Y | AI2: X | AJ2: Y | AL2: X | AM2: Y | AO2: X | AP2: Y | AR2: X | AS2: Y | AU2: X | AV2: Y | AX2: X | AY2: Y | BA2: X | BB2: Y | BD2: 0 | BF2: X | BG2: Y | BH2: Label | BJ2: X | BK2: Y | BM2: X | BN2: Y | BP2: COS
A3: 0.5 | B3: 0.8660254038 | D3: 0 | E3: 0 | F3: 0 | H3: 0 | I3: 0 | K3: 0 | L3: 0 | N3: 1 | O3: 0 | Q3: 0 | R3: 0 | T3: 0.5 | U3: 0.8660254038 | W3: 1 | X3: 0 | Z3: 0 | AA3: 0 | AC3: 0 | AD3: 0 | AF3: 1 | AG3: 0 | AI3: 0 | AJ3: 0 | AL3: 0.5 | AM3: 0.8660254038 | AO3: 1 | AP3: 0 | AR3: 0 | AS3: 0 | AU3: 0.05 | AV3: 0.08660254038 | AX3: 0.275 | AY3: 0.4763139721 | BA3: 0.5 | BB3: 0.8660254038 | BD3: 5 | BF3: =(AU48+AU51)/2 -> 0.4875 | BG3: =(AV47+AV50)/2 -> 0.6062177826 | BH3: Clay | BJ3: 0.7 | BK3: 0.5196152423 | BM3: -0.08 | BN3: 0.6 | BP3: S
A4: 0 | B4: 0 | D4: 0 | E4: 0.1 | F4: 0 | H4: 1 | I4: 0 | K4: 0.5 | L4: 0.8660254038 | N4: 0.5 | O4: 0.8660254038 | Q4: -0.03 | R4: 0 | T4: =T3+0.015 -> 0.515 | U4: =U3+0.02598 -> 0.8920054038 | W4: =W3+0.015 -> 1.015 | X4: =X3-0.02598 -> -0.02598 | Z4: 1 | AA4: 0 | AC4: 0.5 | AD4: 0.8660254038 | AF4: 0.5 | AG4: 0.8660254038 | AI4: -0.03 | AJ4: 0 | AL4: 0.515 | AM4: 0.8920054038 | AO4: 1.015 | AP4: -0.02598 | AR4: 0.01 | AS4: 0 | AU4: 0.15 | AV4: 0 | AX4: 0.375 | AY4: 0.3031088913 | BA4: 0.7 | BB4: 0.5196152423 | BD4: 10 | BF4: =(AX4+AX5)/2 -> 0.275 | BG4: =(AY3+AY5)/2 -> 0.3897114317 | BH4: Sandy Clay | BJ4: 0.3 | BK4: 0.5196152423 | BM4: -0.02 | BN4: 0.6 | BP4: FS
A5: 1 | B5: 0 | D5: 0 | E5: 0.2 | F5: 0 | AR5: 0.02 | AS5: 0 | AU5: 0 | AV5: 0 | AX5: 0.175 | AY5: 0.3031088913 | BA5: 0.3 | BB5: 0.5196152423 | BD5: 15 | BF5: =(AX19+AX20)/2 -> 0.7 | BG5: =(AY18+AY20)/2 -> 0.4330127019 | BH5: Silty Clay | BM5: -0.02 | BN5: 0.575 | BP5: VFS
A6: 0.5 | B6: 0.8660254038 | D6: 0 | E6: 0.3 | F6: 0 | H6: 0.05 | I6: 0.08660254038 | K6: 0.1 | L6: 0 | N6: 0.9 | O6: 0 | Q6: 0.05 | R6: 0.08660254038 | T6: 0.55 | U6: 0.7794228634 | W6: 0.9 | X6: 0 | Z6: 0.025 | AA6: 0.04330127019 | AC6: 0.05 | AD6: 0 | AF6: 0.95 | AG6: 0 | AI6: 0.025 | AJ6: 0.04330127019 | AL6: 0.525 | AM6: 0.8227241336 | AO6: 0.95 | AP6: 0 | AR6: 0.03 | AS6: 0 | AU6: 0.05 | AV6: 0.08660254038 | AX6: 0.275 | AY6: 0.4763139721 | BA6: 0.5 | BB6: 0.8660254038 | BD6: 20 | BF6: =(AX12+AX14)/2 -> 0.5075 | BG6: =(AY10+AY13)/2 -> 0.2901185103 | BH6: Clay Loam | BJ6: 0.825 | BK6: 0.3031088913 | BM6: -0.08 | BN6: 0.575 | BP6: LCOS
D7: 0 | E7: 0.4 | F7: 0 | H7: 0.95 | I7: 0.08660254038 | K7: 0.55 | L7: 0.7794228634 | N7: 0.45 | O7: 0.7794228634 | Q7: 0.02 | R7: 0.08660254038 | T7: =T6+0.015 -> 0.565 | U7: =U6+0.02598 -> 0.8054028634 | W7: =W6+0.015 -> 0.915 | X7: =X6-0.02598 -> -0.02598 | Z7: 0.975 | AA7: 0.04330127019 | AC7: 0.525 | AD7: 0.8227241336 | AF7: 0.475 | AG7: 0.8227241336 | AI7: -0.005 | AJ7: 0.04330127019 | AL7: 0.54 | AM7: 0.8487041336 | AO7: 0.965 | AP7: -0.02598 | AR7: 0.04 | AS7: 0 | BD7: 25 | BF7: =(AU33+AU31)/2 -> 0.2575 | BG7: =(AV29+AV33)/2 -> 0.238156986 | BH7: Sandy Clay Loam | BJ7: 0.175 | BK7: 0.3031088913 | BM7: -0.08 | BN7: 0.6 | BP7: LS
A8: x | B8: y | D8: 0 | E8: 0.5 | F8: 0 | AR8: 0.05 | AS8: 0 | AU8: Loamy Sand | AX8: Clay Loam | BA8: Fine | BD8: 30 | BF8: =(AX25+AX27)/2 -> 0.7325 | BG8: =(AY25+AY28)/2 -> 0.2901185103 | BH8: Silty Clay Loam | BP8: LFS
A9: =0.5*((2*Triangle!$H$13+Triangle!$H$11)/(Triangle!$H$13+Triangle!$H$11+Triangle!$H$9)) -> 1 | B9: =(3^(1/2)/2)*Triangle!$H$11/(Triangle!$H$13+Triangle!$H$11+Triangle!$H$9) -> 0 | D9: 0 | E9: 0.6 | F9: 0 | H9: 0.1 | I9: 0.1732050808 | K9: 0.2 | L9: 0 | N9: 0.8 | O9: 0 | Q9: 0.1 | R9: 0.1732050808 | T9: 0.6 | U9: 0.692820323 | W9: 0.8 | X9: 0 | Z9: 0.05 | AA9: 0.08660254038 | AC9: 0.1 | AD9: 0 | AF9: 0.9 | AG9: 0 | AI9: 0.05 | AJ9: 0.08660254038 | AL9: 0.55 | AM9: 0.7794228634 | AO9: 0.9 | AP9: 0 | AR9: 0.06 | AS9: 0 | AU9: X | AV9: Y | AX9: X | AY9: Y | BA9: X | BB9: Y | BD9: 35 | BF9: =(AU39+AU42)/2 -> 0.5075 | BG9: =(AV38+AV41)/2 -> 0.1472243186 | BH9: Loam | BJ9: 0.09 | BK9: 0.1558845727 | BM9: 0 | BN9: 0.6 | BP9: LVFS
D10: 0 | E10: 0.7 | F10: 0 | H10: 0.9 | I10: 0.1732050808 | K10: 0.6 | L10: 0.692820323 | N10: 0.4 | O10: 0.692820323 | Q10: 0.07 | R10: 0.1732050808 | T10: =T9+0.015 -> 0.615 | U10: =U9+0.02598 -> 0.718800323 | W10: =W9+0.015 -> 0.815 | X10: =X9-0.02598 -> -0.02598 | Z10: 0.95 | AA10: 0.08660254038 | AC10: 0.55 | AD10: 0.7794228634 | AF10: 0.45 | AG10: 0.7794228634 | AI10: 0.02 | AJ10: 0.08660254038 | AL10: 0.565 | AM10: 0.8054028634 | AO10: 0.915 | AP10: -0.02598 | AR10: 0.07 | AS10: 0 | AU10: 0.075 | AV10: 0.1299038106 | AX10: 0.35 | AY10: 0.3464101615 | BA10: 0.3 | BB10: 0.5196152423 | BD10: 40 | BF10: =(AU21+AU24)/2 -> 0.305 | BG10: =(AV18+AV22)/2 -> 0.08660254038 | BH10: Sandy Loam | BJ10: 0.91 | BK10: 0.1558845727 | BM10: 0.06 | BN10: 0.6 | BP10: COSL
D11: 0 | E11: 0.8 | F11: 0 | AR11: 0.08 | AS11: 0 | AU11: 0.3 | AV11: 0 | AX11: 0.6 | AY11: 0.3464101615 | BA11: 0.7 | BB11: 0.5196152423 | BD11: 45 | BF11: =(AX35+AX38)/2 -> 0.72 | BG11: =(AY33+AY38)/2 -> 0.1169134295 | BH11: Silt Loam | BM11: 0.06 | BN11: 0.575 | BP11: SL
D12: 0 | E12: 0.9 | F12: 0 | H12: 0.15 | I12: 0.2598076211 | K12: 0.3 | L12: 0 | N12: 0.7 | O12: 0 | Q12: 0.15 | R12: 0.2598076211 | T12: 0.65 | U12: 0.6062177826 | W12: 0.7 | X12: 0 | Z12: 0.075 | AA12: 0.1299038106 | AC12: 0.15 | AD12: 0 | AF12: 0.85 | AG12: 0 | AI12: 0.075 | AJ12: 0.1299038106 | AL12: 0.575 | AM12: 0.7361215932 | AO12: 0.85 | AP12: 0 | AR12: 0.09 | AS12: 0 | AU12: 0.15 | AV12: 0 | AX12: 0.665 | AY12: 0.233826859 | BA12: 0.825 | BB12: 0.3031088913 | BD12: 50 | BF12: =(AU11+AU13)/2 -> 0.175 | BG12: =(AV10+AV12)/2 -> 0.06495190528 | BH12: Loamy Sand | BJ12: 0.675 | BK12: 0.3031088913 | BM12: 0 | BN12: 0.575 | BP12: FSL
D13: 0 | E13: 1 | F13: 0 | H13: 0.85 | I13: 0.2598076211 | K13: 0.65 | L13: 0.6062177826 | N13: 0.35 | O13: 0.6062177826 | Q13: 0.12 | R13: 0.2598076211 | T13: =T12+0.015 -> 0.665 | U13: =U12+0.02598 -> 0.6321977826 | W13: =W12+0.015 -> 0.715 | X13: =X12-0.02598 -> -0.02598 | Z13: 0.925 | AA13: 0.1299038106 | AC13: 0.575 | AD13: 0.7361215932 | AF13: 0.425 | AG13: 0.7361215932 | AI13: 0.045 | AJ13: 0.1299038106 | AL13: 0.59 | AM13: 0.7621015932 | AO13: 0.865 | AP13: -0.02598 | AR13: 0.1 | AS13: 0 | AU13: 0.05 | AV13: 0.08660254038 | AX13: 0.415 | AY13: 0.233826859 | BA13: 0.175 | BB13: 0.3031088913 | BD13: 55 | BF13: =(AU4+AU5)/2 -> 0.075 | BG13: =(AV3+AV5)/2 -> 0.04330127019 | BH13: Sand | BJ13: 0.85 | BK13: 0 | BM13: 0 | BN13: 0.6 | BP13: VFSL
AR14: 0.11 | AS14: 0 | AU14: 0.075 | AV14: 0.1299038106 | AX14: 0.35 | AY14: 0.3464101615 | BA14: 0.3 | BB14: 0.5196152423 | BD14: 60 | BF14: =(AX45+AX46)/2 -> 0.9 | BG14: =(AY43+AY46)/2 -> 0.05196152423 | BH14: Silt
D15: 0.1 | E15: 0.05 | F15: 0.08660254038 | H15: 0.2 | I15: 0.3464101615 | K15: 0.4 | L15: 0 | N15: 0.6 | O15: 0 | Q15: 0.2 | R15: 0.3464101615 | T15: 0.7 | U15: 0.5196152423 | W15: 0.6 | X15: 0 | Z15: 0.1 | AA15: 0.1732050808 | AC15: 0.2 | AD15: 0 | AF15: 0.8 | AG15: 0 | AI15: 0.1 | AJ15: 0.1732050808 | AL15: 0.6 | AM15: 0.692820323 | AO15: 0.8 | AP15: 0 | AR15: 0.12 | AS15: 0 | BD15: 65 | BJ15: 0.075 | BK15: 0.1299038106 | BM15: 0.08 | BN15: 0.6
D16: 0.1 | E16: 0.15 | F16: 0.08660254038 | H16: 0.8 | I16: 0.3464101615 | K16: 0.7 | L16: 0.5196152423 | N16: 0.3 | O16: 0.5196152423 | Q16: 0.17 | R16: 0.3464101615 | T16: =T15+0.015 -> 0.715 | U16: =U15+0.02598 -> 0.5455952423 | W16: =W15+0.015 -> 0.615 | X16: =X15-0.02598 -> -0.02598 | Z16: 0.9 | AA16: 0.1732050808 | AC16: 0.6 | AD16: 0.692820323 | AF16: 0.4 | AG16: 0.692820323 | AI16: 0.07 | AJ16: 0.1732050808 | AL16: 0.615 | AM16: 0.718800323 | AO16: 0.815 | AP16: -0.02598 | AR16: 0.13 | AS16: 0 | AU16: Sandy Loam | AX16: Silty Clay | BA16: Fine Silty | BD16: 70 | BJ16: 0.3 | BK16: 0 | BM16: 0.14 | BN16: 0.6
D17: 0.1 | E17: 0.25 | F17: 0.08660254038 | AR17: 0.14 | AS17: 0 | AU17: X | AV17: Y | AX17: X | AY17: Y | BA17: X | BB17: Y | BD17: 75 | BM17: 0.14 | BN17: 0.575
D18: 0.1 | E18: 0.35 | F18: 0.08660254038 | H18: 0.25 | I18: 0.4330127019 | K18: 0.5 | L18: 0 | N18: 0.5 | O18: 0 | Q18: 0.25 | R18: 0.4330127019 | T18: 0.75 | U18: 0.4330127019 | W18: 0.5 | X18: 0 | Z18: 0.125 | AA18: 0.2165063509 | AC18: 0.25 | AD18: 0 | AF18: 0.75 | AG18: 0 | AI18: 0.125 | AJ18: 0.2165063509 | AL18: 0.625 | AM18: 0.6495190528 | AO18: 0.75 | AP18: 0 | AR18: 0.15 | AS18: 0 | AU18: 0.1 | AV18: 0.1732050808 | AX18: 0.7 | AY18: 0.5196152423 | BA18: 0.675 | BB18: 0.3031088913 | BD18: 80 | BM18: 0.08 | BN18: 0.575
D19: 0.1 | E19: 0.45 | F19: 0.08660254038 | H19: 0.75 | I19: 0.4330127019 | K19: 0.75 | L19: 0.4330127019 | N19: 0.25 | O19: 0.4330127019 | Q19: 0.22 | R19: 0.4330127019 | T19: =T18+0.015 -> 0.765 | U19: =U18+0.02598 -> 0.4589927019 | W19: =W18+0.015 -> 0.515 | X19: =X18-0.02598 -> -0.02598 | Z19: 0.875 | AA19: 0.2165063509 | AC19: 0.625 | AD19: 0.6495190528 | AF19: 0.375 | AG19: 0.6495190528 | AI19: 0.095 | AJ19: 0.2165063509 | AL19: 0.64 | AM19: 0.6754990528 | AO19: 0.765 | AP19: -0.02598 | AR19: 0.16 | AS19: 0 | AU19: 0.38 | AV19: 0.1732050808 | AX19: 0.8 | AY19: 0.3464101615 | BA19: 0.825 | BB19: 0.3031088913 | BD19: 85 | BM19: 0.08 | BN19: 0.6
D20: 0.1 | E20: 0.55 | F20: 0.08660254038 | AR20: 0.17 | AS20: 0 | AU20: 0.445 | AV20: 0.06062177826 | AX20: 0.6 | AY20: 0.3464101615 | BA20: 0.91 | BB20: 0.1558845727 | BD20: 90
D21: 0.1 | E21: 0.65 | F21: 0.08660254038 | H21: 0.3 | I21: 0.5196152423 | K21: 0.6 | L21: 0 | N21: 0.4 | O21: 0 | Q21: 0.3 | R21: 0.5196152423 | T21: 0.8 | U21: 0.3464101615 | W21: 0.4 | X21: 0 | Z21: 0.15 | AA21: 0.2598076211 | AC21: 0.3 | AD21: 0 | AF21: 0.7 | AG21: 0 | AI21: 0.15 | AJ21: 0.2598076211 | AL21: 0.65 | AM21: 0.6062177826 | AO21: 0.7 | AP21: 0 | AR21: 0.18 | AS21: 0 | AU21: 0.535 | AV21: 0.06062177826 | AX21: 0.7 | AY21: 0.5196152423 | BA21: 0.76 | BB21: 0.1558845727 | BD21: 95 | BM21: 0.16 | BN21: 0.6
D22: 0.1 | E22: 0.75 | F22: 0.08660254038 | H22: 0.7 | I22: 0.5196152423 | K22: 0.8 | L22: 0.3464101615 | N22: 0.2 | O22: 0.3464101615 | Q22: 0.27 | R22: 0.5196152423 | T22: =T21+0.015 -> 0.815 | U22: =U21+0.02598 -> 0.3723901615 | W22: =W21+0.015 -> 0.415 | X22: =X21-0.02598 -> -0.02598 | Z22: 0.85 | AA22: 0.2598076211 | AC22: 0.65 | AD22: 0.6062177826 | AF22: 0.35 | AG22: 0.6062177826 | AI22: 0.12 | AJ22: 0.2598076211 | AL22: 0.665 | AM22: 0.6321977826 | AO22: 0.715 | AP22: -0.02598 | AR22: 0.19 | AS22: 0 | AU22: 0.5 | AV22: 0 | BA22: 0.675 | BB22: 0.3031088913 | BD22: 100 | BM22: 0.22 | BN22: 0.6
D23: 0.1 | E23: 0.85 | F23: 0.08660254038 | AR23: 0.2 | AS23: 0 | AU23: 0.3 | AV23: 0 | AX23: Silty Clay Loam | BM23: 0.22 | BN23: 0.575
D24: 0.1 | E24: 0.95 | F24: 0.08660254038 | H24: 0.35 | I24: 0.6062177826 | K24: 0.7 | L24: 0 | N24: 0.3 | O24: 0 | Q24: 0.35 | R24: 0.6062177826 | T24: 0.85 | U24: 0.2598076211 | W24: 0.3 | X24: 0 | Z24: 0.175 | AA24: 0.3031088913 | AC24: 0.35 | AD24: 0 | AF24: 0.65 | AG24: 0 | AI24: 0.175 | AJ24: 0.3031088913 | AL24: 0.675 | AM24: 0.5629165125 | AO24: 0.65 | AP24: 0 | AR24: 0.21 | AS24: 0 | AU24: 0.075 | AV24: 0.1299038106 | AX24: X | AY24: Y | BA24: Coarse Silty | BM24: 0.16 | BN24: 0.575
H25: 0.65 | I25: 0.6062177826 | K25: 0.85 | L25: 0.2598076211 | N25: 0.15 | O25: 0.2598076211 | Q25: 0.32 | R25: 0.6062177826 | T25: =T24+0.015 -> 0.865 | U25: =U24+0.02598 -> 0.2857876211 | W25: =W24+0.015 -> 0.315 | X25: =X24-0.02598 -> -0.02598 | Z25: 0.825 | AA25: 0.3031088913 | AC25: 0.675 | AD25: 0.5629165125 | AF25: 0.325 | AG25: 0.5629165125 | AI25: 0.145 | AJ25: 0.3031088913 | AL25: 0.69 | AM25: 0.5888965125 | AO25: 0.665 | AP25: -0.02598 | AR25: 0.22 | AS25: 0 | AU25: 0.1 | AV25: 0.1732050808 | AX25: 0.6 | AY25: 0.3464101615 | BA25: X | BB25: Y | BM25: 0.16 | BN25: 0.6
D26: 0.2 | E26: 0.1 | F26: 0.1732050808 | AR26: 0.23 | AS26: 0 | AX26: 0.8 | AY26: 0.3464101615 | BA26: 0.76 | BB26: 0.1558845727
D27: 0.2 | E27: 0.2 | F27: 0.1732050808 | H27: 0.4 | I27: 0.692820323 | K27: 0.8 | L27: 0 | N27: 0.2 | O27: 0 | Q27: 0.4 | R27: 0.692820323 | T27: 0.9 | U27: 0.1732050808 | W27: 0.2 | X27: 0 | Z27: 0.2 | AA27: 0.3464101615 | AC27: 0.4 | AD27: 0 | AF27: 0.6 | AG27: 0 | AI27: 0.2 | AJ27: 0.3464101615 | AL27: 0.7 | AM27: 0.5196152423 | AO27: 0.6 | AP27: 0 | AR27: 0.24 | AS27: 0 | AU27: Sandy Clay Loam | AX27: 0.865 | AY27: 0.233826859 | BA27: 0.91 | BB27: 0.1558845727 | BM27: -0.08 | BN27: 0.55
D28: 0.2 | E28: 0.3 | F28: 0.1732050808 | H28: 0.6 | I28: 0.692820323 | K28: 0.9 | L28: 0.1732050808 | N28: 0.1 | O28: 0.1732050808 | Q28: 0.37 | R28: 0.692820323 | T28: =T27+0.015 -> 0.915 | U28: =U27+0.02598 -> 0.1991850808 | W28: =W27+0.015 -> 0.215 | X28: =X27-0.02598 -> -0.02598 | Z28: 0.8 | AA28: 0.3464101615 | AC28: 0.7 | AD28: 0.5196152423 | AF28: 0.3 | AG28: 0.5196152423 | AI28: 0.17 | AJ28: 0.3464101615 | AL28: 0.715 | AM28: 0.5455952423 | AO28: 0.615 | AP28: -0.02598 | AR28: 0.25 | AS28: 0 | AU28: X | AV28: Y | AX28: 0.665 | AY28: 0.233826859 | BA28: 1 | BB28: 0 | BM28: -0.02 | BN28: 0.55
D29: 0.2 | E29: 0.4 | F29: 0.1732050808 | AR29: 0.26 | AS29: 0 | AU29: 0.175 | AV29: 0.3031088913 | AX29: 0.6 | AY29: 0.3464101615 | BA29: 0.85 | BB29: 0 | BM29: -0.02 | BN29: 0.525
D30: 0.2 | E30: 0.5 | F30: 0.1732050808 | H30: 0.45 | I30: 0.7794228634 | K30: 0.9 | L30: 0 | N30: 0.1 | O30: 0 | Q30: 0.45 | R30: 0.7794228634 | T30: 0.95 | U30: 0.08660254038 | W30: 0.1 | X30: 0 | Z30: 0.225 | AA30: 0.3897114317 | AC30: 0.45 | AD30: 0 | AF30: 0.55 | AG30: 0 | AI30: 0.225 | AJ30: 0.3897114317 | AL30: 0.725 | AM30: 0.4763139721 | AO30: 0.55 | AP30: 0 | AR30: 0.27 | AS30: 0 | AU30: 0.375 | AV30: 0.3031088913 | BA30: 0.76 | BB30: 0.1558845727 | BM30: -0.08 | BN30: 0.525
D31: 0.2 | E31: 0.6 | F31: 0.1732050808 | H31: 0.55 | I31: 0.7794228634 | K31: 0.95 | L31: 0.08660254038 | N31: 0.05 | O31: 0.08660254038 | Q31: 0.42 | R31: 0.7794228634 | T31: =T30+0.015 -> 0.965 | U31: =U30+0.02598 -> 0.1125825404 | W31: =W30+0.015 -> 0.115 | X31: =X30-0.02598 -> -0.02598 | Z31: 0.775 | AA31: 0.3897114317 | AC31: 0.725 | AD31: 0.4763139721 | AF31: 0.275 | AG31: 0.4763139721 | AI31: 0.195 | AJ31: 0.3897114317 | AL31: 0.74 | AM31: 0.5022939721 | AO31: 0.565 | AP31: -0.02598 | AR31: 0.28 | AS31: 0 | AU31: 0.415 | AV31: 0.233826859 | AX31: Silt Loam | BM31: -0.08 | BN31: 0.55
D32: 0.2 | E32: 0.7 | F32: 0.1732050808 | AR32: 0.29 | AS32: 0 | AU32: 0.38 | AV32: 0.1732050808 | AX32: X | AY32: Y | BA32: Fine Loamy
D33: 0.2 | E33: 0.8 | F33: 0.1732050808 | H33: 0.5 | I33: 0.8660254038 | K33: 1 | L33: 0 | N33: 0 | O33: 0 | Q33: 0.5 | R33: 0.8660254038 | T33: 1 | U33: 0 | W33: 0 | X33: 0 | Z33: 0.25 | AA33: 0.4330127019 | AC33: 0.5 | AD33: 0 | AF33: 0.5 | AG33: 0 | AI33: 0.25 | AJ33: 0.4330127019 | AL33: 0.75 | AM33: 0.4330127019 | AO33: 0.5 | AP33: 0 | AR33: 0.3 | AS33: 0 | AU33: 0.1 | AV33: 0.1732050808 | AX33: 0.635 | AY33: 0.233826859 | BA33: X | BB33: Y | BM33: 0 | BN33: 0.55
D34: 0.2 | E34: 0.9 | F34: 0.1732050808 | Q34: 0.47 | R34: 0.8660254038 | T34: =T33+0.015 -> 1.015 | U34: =U33+0.02598 -> 0.02598 | W34: =W33+0.015 -> 0.015 | X34: =X33-0.02598 -> -0.02598 | Z34: 0.75 | AA34: 0.4330127019 | AC34: 0.75 | AD34: 0.4330127019 | AF34: 0.25 | AG34: 0.4330127019 | AI34: 0.22 | AJ34: 0.4330127019 | AL34: 0.765 | AM34: 0.4589927019 | AO34: 0.515 | AP34: -0.02598 | AR34: 0.31 | AS34: 0 | AU34: 0.175 | AV34: 0.3031088913 | AX34: 0.865 | AY34: 0.233826859 | BA34: 0.175 | BB34: 0.3031088913 | BM34: 0.06 | BN34: 0.55
AR35: 0.32 | AS35: 0 | AX35: 0.94 | AY35: 0.1039230485 | BA35: 0.675 | BB35: 0.3031088913 | BM35: 0.06 | BN35: 0.525
D36: 0.3 | E36: 0.15 | F36: 0.2598076211 | Z36: 0.275 | AA36: 0.4763139721 | AC36: 0.55 | AD36: 0 | AF36: 0.45 | AG36: 0 | AI36: 0.275 | AJ36: 0.4763139721 | AL36: 0.775 | AM36: 0.3897114317 | AO36: 0.45 | AP36: 0 | AR36: 0.33 | AS36: 0 | AU36: Loam | AX36: 0.86 | AY36: 0.1039230485 | BA36: 0.76 | BB36: 0.1558845727 | BM36: 0 | BN36: 0.525
D37: 0.3 | E37: 0.25 | F37: 0.2598076211 | Z37: 0.725 | AA37: 0.4763139721 | AC37: 0.775 | AD37: 0.3897114317 | AF37: 0.225 | AG37: 0.3897114317 | AI37: 0.245 | AJ37: 0.4763139721 | AL37: 0.79 | AM37: 0.4156914317 | AO37: 0.465 | AP37: -0.02598 | AR37: 0.34 | AS37: 0 | AU37: X | AV37: Y | AX37: 0.8 | AY37: 0 | BA37: 0.09 | BB37: 0.1558845727 | BM37: 0 | BN37: 0.55
D38: 0.3 | E38: 0.35 | F38: 0.2598076211 | AR38: 0.35 | AS38: 0 | AU38: 0.415 | AV38: 0.233826859 | AX38: 0.5 | AY38: 0 | BA38: 0.175 | BB38: 0.3031088913
D39: 0.3 | E39: 0.45 | F39: 0.2598076211 | Z39: 0.3 | AA39: 0.5196152423 | AC39: 0.6 | AD39: 0 | AF39: 0.4 | AG39: 0 | AI39: 0.3 | AJ39: 0.5196152423 | AL39: 0.8 | AM39: 0.3464101615 | AO39: 0.4 | AP39: 0 | AR39: 0.36 | AS39: 0 | AU39: 0.635 | AV39: 0.233826859 | AX39: 0.635 | AY39: 0.233826859 | BM39: 0.08 | BN39: 0.55
D40: 0.3 | E40: 0.55 | F40: 0.2598076211 | Z40: 0.7 | AA40: 0.5196152423 | AC40: 0.8 | AD40: 0.3464101615 | AF40: 0.2 | AG40: 0.3464101615 | AI40: 0.27 | AJ40: 0.5196152423 | AL40: 0.815 | AM40: 0.3723901615 | AO40: 0.415 | AP40: -0.02598 | AR40: 0.37 | AS40: 0 | AU40: 0.535 | AV40: 0.06062177826 | BA40: Coarse Loamy | BM40: 0.14 | BN40: 0.55
D41: 0.3 | E41: 0.65 | F41: 0.2598076211 | AR41: 0.38 | AS41: 0 | AU41: 0.445 | AV41: 0.06062177826 | AX41: Silt | BA41: X | BB41: Y | BM41: 0.14 | BN41: 0.525
D42: 0.3 | E42: 0.75 | F42: 0.2598076211 | Z42: 0.325 | AA42: 0.5629165125 | AC42: 0.65 | AD42: 0 | AF42: 0.35 | AG42: 0 | AI42: 0.325 | AJ42: 0.5629165125 | AL42: 0.825 | AM42: 0.3031088913 | AO42: 0.35 | AP42: 0 | AR42: 0.39 | AS42: 0 | AU42: 0.38 | AV42: 0.1732050808 | AX42: X | AY42: Y | BA42: 0.09 | BB42: 0.1558845727 | BM42: 0.08 | BN42: 0.525
D43: 0.3 | E43: 0.85 | F43: 0.2598076211 | Z43: 0.675 | AA43: 0.5629165125 | AC43: 0.825 | AD43: 0.3031088913 | AF43: 0.175 | AG43: 0.3031088913 | AI43: 0.295 | AJ43: 0.5629165125 | AL43: 0.84 | AM43: 0.3290888913 | AO43: 0.365 | AP43: -0.02598 | AR43: 0.4 | AS43: 0 | AU43: 0.415 | AV43: 0.233826859 | AX43: 0.86 | AY43: 0.1039230485 | BA43: 0.76 | BB43: 0.1558845727 | BM43: 0.08 | BN43: 0.55
AR44: 0.41 | AS44: 0 | AX44: 0.94 | AY44: 0.1039230485 | BA44: 0.85 | BB44: 0
D45: 0.4 | E45: 0.2 | F45: 0.3464101615 | Z45: 0.35 | AA45: 0.6062177826 | AC45: 0.7 | AD45: 0 | AF45: 0.3 | AG45: 0 | AI45: 0.35 | AJ45: 0.6062177826 | AL45: 0.85 | AM45: 0.2598076211 | AO45: 0.3 | AP45: 0 | AR45: 0.42 | AS45: 0 | AU45: Clay | AX45: 1 | AY45: 0 | BA45: 0.3 | BB45: 0 | BM45: 0.16 | BN45: 0.55
D46: 0.4 | E46: 0.3 | F46: 0.3464101615 | Z46: 0.65 | AA46: 0.6062177826 | AC46: 0.85 | AD46: 0.2598076211 | AF46: 0.15 | AG46: 0.2598076211 | AI46: 0.32 | AJ46: 0.6062177826 | AL46: 0.865 | AM46: 0.2857876211 | AO46: 0.315 | AP46: -0.02598 | AR46: 0.43 | AS46: 0 | AU46: X | AV46: Y | AX46: 0.8 | AY46: 0 | BA46: 0.075 | BB46: 0.1299038106 | BM46: 0.22 | BN46: 0.55
D47: 0.4 | E47: 0.4 | F47: 0.3464101615 | AR47: 0.44 | AS47: 0 | AU47: 0.5 | AV47: 0.8660254038 | AX47: 0.86 | AY47: 0.1039230485 | BA47: 0.09 | BB47: 0.1558845727 | BM47: 0.22 | BN47: 0.525
D48: 0.4 | E48: 0.5 | F48: 0.3464101615 | Z48: 0.375 | AA48: 0.6495190528 | AC48: 0.75 | AD48: 0 | AF48: 0.25 | AG48: 0 | AI48: 0.375 | AJ48: 0.6495190528 | AL48: 0.875 | AM48: 0.2165063509 | AO48: 0.25 | AP48: 0 | AR48: 0.45 | AS48: 0 | AU48: 0.7 | AV48: 0.5196152423 | BM48: 0.16 | BN48: 0.525
D49: 0.4 | E49: 0.6 | F49: 0.3464101615 | Z49: 0.625 | AA49: 0.6495190528 | AC49: 0.875 | AD49: 0.2165063509 | AF49: 0.125 | AG49: 0.2165063509 | AI49: 0.345 | AJ49: 0.6495190528 | AL49: 0.89 | AM49: 0.2424863509 | AO49: 0.265 | AP49: -0.02598 | AR49: 0.46 | AS49: 0 | AU49: 0.6 | AV49: 0.3464101615 | BA49: Sandy | BM49: 0.16 | BN49: 0.55
D50: 0.4 | E50: 0.7 | F50: 0.3464101615 | AR50: 0.47 | AS50: 0 | AU50: 0.35 | AV50: 0.3464101615 | BA50: X | BB50: Y
D51: 0.4 | E51: 0.8 | F51: 0.3464101615 | Z51: 0.4 | AA51: 0.692820323 | AC51: 0.8 | AD51: 0 | AF51: 0.2 | AG51: 0 | AI51: 0.4 | AJ51: 0.692820323 | AL51: 0.9 | AM51: 0.1732050808 | AO51: 0.2 | AP51: 0 | AR51: 0.48 | AS51: 0 | AU51: 0.275 | AV51: 0.4763139721 | BA51: 0.075 | BB51: 0.1299038106 | BM51: -0.08 | BN51: 0.5
Z52: 0.6 | AA52: 0.692820323 | AC52: 0.9 | AD52: 0.1732050808 | AF52: 0.1 | AG52: 0.1732050808 | AI52: 0.37 | AJ52: 0.692820323 | AL52: 0.915 | AM52: 0.1991850808 | AO52: 0.215 | AP52: -0.02598 | AR52: 0.49 | AS52: 0 | AU52: 0.5 | AV52: 0.8660254038 | BA52: 0.3 | BB52: 0 | BM52: -0.02 | BN52: 0.5
D53: 0.5 | E53: 0.25 | F53: 0.4330127019 | AR53: 0.5 | AS53: 0 | BA53: 0 | BB53: 0 | BM53: -0.02 | BN53: 0.475
D54: 0.5 | E54: 0.35 | F54: 0.4330127019 | Z54: 0.425 | AA54: 0.7361215932 | AC54: 0.85 | AD54: 0 | AF54: 0.15 | AG54: 0 | AI54: 0.425 | AJ54: 0.7361215932 | AL54: 0.925 | AM54: 0.1299038106 | AO54: 0.15 | AP54: 0 | AR54: 0.51 | AS54: 0 | BA54: 0.075 | BB54: 0.1299038106 | BM54: -0.08 | BN54: 0.475
D55: 0.5 | E55: 0.45 | F55: 0.4330127019 | Z55: 0.575 | AA55: 0.7361215932 | AC55: 0.925 | AD55: 0.1299038106 | AF55: 0.075 | AG55: 0.1299038106 | AI55: 0.395 | AJ55: 0.7361215932 | AL55: 0.94 | AM55: 0.1558838106 | AO55: 0.165 | AP55: -0.02598 | AR55: 0.52 | AS55: 0 | BM55: -0.08 | BN55: 0.5
D56: 0.5 | E56: 0.55 | F56: 0.4330127019 | AR56: 0.53 | AS56: 0
D57: 0.5 | E57: 0.65 | F57: 0.4330127019 | Z57: 0.45 | AA57: 0.7794228634 | AC57: 0.9 | AD57: 0 | AF57: 0.1 | AG57: 0 | AI57: 0.45 | AJ57: 0.7794228634 | AL57: 0.95 | AM57: 0.08660254038 | AO57: 0.1 | AP57: 0 | AR57: 0.54 | AS57: 0 | BM57: 0 | BN57: 0.5
D58: 0.5 | E58: 0.75 | F58: 0.4330127019 | Z58: 0.55 | AA58: 0.7794228634 | AC58: 0.95 | AD58: 0.08660254038 | AF58: 0.05 | AG58: 0.08660254038 | AI58: 0.42 | AJ58: 0.7794228634 | AL58: 0.965 | AM58: 0.1125825404 | AO58: 0.115 | AP58: -0.02598 | AR58: 0.55 | AS58: 0 | BM58: 0.06 | BN58: 0.5
AR59: 0.56 | AS59: 0 | BM59: 0.06 | BN59: 0.475
D60: 0.6 | E60: 0.3 | F60: 0.5196152423 | Z60: 0.475 | AA60: 0.8227241336 | AC60: 0.95 | AD60: 0 | AF60: 0.05 | AG60: 0 | AI60: 0.475 | AJ60: 0.8227241336 | AL60: 0.975 | AM60: 0.04330127019 | AO60: 0.05 | AP60: 0 | AR60: 0.57 | AS60: 0 | BM60: 0 | BN60: 0.475
D61: 0.6 | E61: 0.4 | F61: 0.5196152423 | Z61: 0.525 | AA61: 0.8227241336 | AC61: 0.975 | AD61: 0.04330127019 | AF61: 0.025 | AG61: 0.04330127019 | AI61: 0.445 | AJ61: 0.8227241336 | AL61: 0.99 | AM61: 0.06928127019 | AO61: 0.065 | AP61: -0.02598 | AR61: 0.58 | AS61: 0 | BM61: 0 | BN61: 0.5
D62: 0.6 | E62: 0.5 | F62: 0.5196152423 | AR62: 0.59 | AS62: 0
D63: 0.6 | E63: 0.6 | F63: 0.5196152423 | Z63: 0.5 | AA63: 0.8660254038 | AC63: 1 | AD63: 0 | AF63: 0 | AG63: 0 | AI63: 0.5 | AJ63: 0.8660254038 | AL63: 1 | AM63: 0 | AO63: 0 | AP63: 0 | AR63: 0.6 | AS63: 0 | BM63: 0.08 | BN63: 0.5
D64: 0.6 | E64: 0.7 | F64: 0.5196152423 | AI64: 0.47 | AJ64: 0.8660254038 | AL64: 1.015 | AM64: 0.02598 | AO64: 0.015 | AP64: -0.02598 | AR64: 0.61 | AS64: 0 | BM64: 0.14 | BN64: 0.5
AR65: 0.62 | AS65: 0 | BM65: 0.14 | BN65: 0.475
D66: 0.7 | E66: 0.35 | F66: 0.6062177826 | AR66: 0.63 | AS66: 0 | BM66: 0.08 | BN66: 0.475
D67: 0.7 | E67: 0.45 | F67: 0.6062177826 | AR67: 0.64 | AS67: 0 | BM67: 0.08 | BN67: 0.5
D68: 0.7 | E68: 0.55 | F68: 0.6062177826 | AR68: 0.65 | AS68: 0
D69: 0.7 | E69: 0.65 | F69: 0.6062177826 | AR69: 0.66 | AS69: 0 | BM69: 0.16 | BN69: 0.5
AR70: 0.67 | AS70: 0 | BM70: 0.22 | BN70: 0.5
D71: 0.8 | E71: 0.4 | F71: 0.692820323 | AR71: 0.68 | AS71: 0 | BM71: 0.22 | BN71: 0.475
D72: 0.8 | E72: 0.5 | F72: 0.692820323 | AR72: 0.69 | AS72: 0 | BM72: 0.16 | BN72: 0.475
D73: 0.8 | E73: 0.6 | F73: 0.692820323 | AR73: 0.7 | AS73: 0 | BM73: 0.16 | BN73: 0.5
AR74: 0.71 | AS74: 0
D75: 0.9 | E75: 0.45 | F75: 0.7794228634 | AR75: 0.72 | AS75: 0
D76: 0.9 | E76: 0.55 | F76: 0.7794228634 | AR76: 0.73 | AS76: 0
AR77: 0.74 | AS77: 0
D78: 1 | E78: 0.5 | F78: 0.8660254038 | AR78: 0.75 | AS78: 0
AR79: 0.76 | AS79: 0
AR80: 0.77 | AS80: 0
AR81: 0.78 | AS81: 0
AR82: 0.79 | AS82: 0
AR83: 0.8 | AS83: 0
AR84: 0.81 | AS84: 0
AR85: 0.82 | AS85: 0
AR86: 0.83 | AS86: 0
AR87: 0.84 | AS87: 0
AR88: 0.85 | AS88: 0
AR89: 0.86 | AS89: 0
AR90: 0.87 | AS90: 0
AR91: 0.88 | AS91: 0
AR92: 0.89 | AS92: 0
AR93: 0.9 | AS93: 0
AR94: 0.91 | AS94: 0
AR95: 0.92 | AS95: 0
AR96: 0.93 | AS96: 0
AR97: 0.94 | AS97: 0
AR98: 0.95 | AS98: 0
AR99: 0.96 | AS99: 0
AR100: 0.97 | AS100: 0
AR101: 0.98 | AS101: 0
AR102: 0.99 | AS102: 0
AR103: 1 | AS103: 0
AR105: 0.005 | AS105: 0.008660254038
AR106: 0.015 | AS106: 0.008660254038
AR107: 0.025 | AS107: 0.008660254038
AR108: 0.035 | AS108: 0.008660254038
AR109: 0.045 | AS109: 0.008660254038
AR110: 0.055 | AS110: 0.008660254038
AR111: 0.065 | AS111: 0.008660254038
AR112: 0.075 | AS112: 0.008660254038
AR113: 0.085 | AS113: 0.008660254038
AR114: 0.095 | AS114: 0.008660254038
AR115: 0.105 | AS115: 0.008660254038
AR116: 0.115 | AS116: 0.008660254038
AR117: 0.125 | AS117: 0.008660254038
AR118: 0.135 | AS118: 0.008660254038
AR119: 0.145 | AS119: 0.008660254038
AR120: 0.155 | AS120: 0.008660254038
AR121: 0.165 | AS121: 0.008660254038
AR122: 0.175 | AS122: 0.008660254038
AR123: 0.185 | AS123: 0.008660254038
AR124: 0.195 | AS124: 0.008660254038
AR125: 0.205 | AS125: 0.008660254038
AR126: 0.215 | AS126: 0.008660254038
AR127: 0.225 | AS127: 0.008660254038
AR128: 0.235 | AS128: 0.008660254038
AR129: 0.245 | AS129: 0.008660254038
AR130: 0.255 | AS130: 0.008660254038
AR131: 0.265 | AS131: 0.008660254038
AR132: 0.275 | AS132: 0.008660254038
AR133: 0.285 | AS133: 0.008660254038
AR134: 0.295 | AS134: 0.008660254038
AR135: 0.305 | AS135: 0.008660254038
AR136: 0.315 | AS136: 0.008660254038
AR137: 0.325 | AS137: 0.008660254038
AR138: 0.335 | AS138: 0.008660254038
AR139: 0.345 | AS139: 0.008660254038
AR140: 0.355 | AS140: 0.008660254038
AR141: 0.365 | AS141: 0.008660254038
AR142: 0.375 | AS142: 0.008660254038
AR143: 0.385 | AS143: 0.008660254038
AR144: 0.395 | AS144: 0.008660254038
AR145: 0.405 | AS145: 0.008660254038
AR146: 0.415 | AS146: 0.008660254038
AR147: 0.425 | AS147: 0.008660254038
AR148: 0.435 | AS148: 0.008660254038
AR149: 0.445 | AS149: 0.008660254038
AR150: 0.455 | AS150: 0.008660254038
AR151: 0.465 | AS151: 0.008660254038
AR152: 0.475 | AS152: 0.008660254038
AR153: 0.485 | AS153: 0.008660254038
AR154: 0.495 | AS154: 0.008660254038
AR155: 0.505 | AS155: 0.008660254038
AR156: 0.515 | AS156: 0.008660254038
AR157: 0.525 | AS157: 0.008660254038
AR158: 0.535 | AS158: 0.008660254038
AR159: 0.545 | AS159: 0.008660254038
AR160: 0.555 | AS160: 0.008660254038
AR161: 0.565 | AS161: 0.008660254038
AR162: 0.575 | AS162: 0.008660254038
AR163: 0.585 | AS163: 0.008660254038
AR164: 0.595 | AS164: 0.008660254038
AR165: 0.605 | AS165: 0.008660254038
AR166: 0.615 | AS166: 0.008660254038
AR167: 0.625 | AS167: 0.008660254038
AR168: 0.635 | AS168: 0.008660254038
AR169: 0.645 | AS169: 0.008660254038
AR170: 0.655 | AS170: 0.008660254038
AR171: 0.665 | AS171: 0.008660254038
AR172: 0.675 | AS172: 0.008660254038
AR173: 0.685 | AS173: 0.008660254038
AR174: 0.695 | AS174: 0.008660254038
AR175: 0.705 | AS175: 0.008660254038
AR176: 0.715 | AS176: 0.008660254038
AR177: 0.725 | AS177: 0.008660254038
AR178: 0.735 | AS178: 0.008660254038
AR179: 0.745 | AS179: 0.008660254038
AR180: 0.755 | AS180: 0.008660254038
AR181: 0.765 | AS181: 0.008660254038
AR182: 0.775 | AS182: 0.008660254038
AR183: 0.785 | AS183: 0.008660254038
AR184: 0.795 | AS184: 0.008660254038
AR185: 0.805 | AS185: 0.008660254038
AR186: 0.815 | AS186: 0.008660254038
AR187: 0.825 | AS187: 0.008660254038
AR188: 0.835 | AS188: 0.008660254038
AR189: 0.845 | AS189: 0.008660254038
AR190: 0.855 | AS190: 0.008660254038
AR191: 0.865 | AS191: 0.008660254038
AR192: 0.875 | AS192: 0.008660254038
AR193: 0.885 | AS193: 0.008660254038
AR194: 0.895 | AS194: 0.008660254038
AR195: 0.905 | AS195: 0.008660254038
AR196: 0.915 | AS196: 0.008660254038
AR197: 0.925 | AS197: 0.008660254038
AR198: 0.935 | AS198: 0.008660254038
AR199: 0.945 | AS199: 0.008660254038
AR200: 0.955 | AS200: 0.008660254038
AR201: 0.965 | AS201: 0.008660254038
... 898 more rows

Sheet Calc (hidden)
A1: Basics
A2: =IF(Triangle!H13+1.5*Triangle!H11<0.15,1,0) -> 0 | B2: ((silt + 1.5*clay) < 15) | C2: SAND
A3: =IF(AND(Triangle!H13+1.5*Triangle!H11>=0.15, Triangle!H13+2*Triangle!H11<0.3), 2, 0) -> 0 | B3: ((silt + 1.5*clay >= 15) && (silt + 2*clay < 30)) | C3: LOAMY SAND
A4: =IF(OR(AND(Triangle!H11>=0.07, Triangle!H11<0.2,Triangle!H9>0.52,Triangle!H13+2*Triangle!H11>=0.3), AND(Triangle!H11<0.07, Triangle!H13<0.5, Triangle!H13+2*Triangle!H11>=0.3)), 3,0) -> 0 | B4: ((clay >= 7 && clay < 20) && (sand > 52) && ((silt + 2*clay) >= 30) || (clay < 7 && silt < 50 && (silt+2*clay)>=30)) | C4: SANDY LOAM
A5: =IF(AND(Triangle!H11>=0.07, Triangle!H11<0.27, Triangle!H13>=0.28, Triangle!H13<0.5, Triangle!H9<=0.52), 4, 0) -> 0 | B5: ((clay >= 7 && clay < 27) && (silt >= 28 && silt < 50) && (sand <= 52)) | C5: LOAM
A6: =IF(OR(AND(Triangle!H13>=0.5, Triangle!H11>=0.12,Triangle!H11<0.27), AND(Triangle!H13>=0.5,Triangle!H13<0.8,Triangle!H11<0.12)), 5,0) -> 0 | B6: ((silt >= 50 && (clay >= 12 && clay < 27)) || ((silt >= 50 && silt < 80) && clay < 12)) | C6: SILT LOAM
A7: =IF(AND(Triangle!H13>=0.8, Triangle!H11<0.12), 6, 0) -> 6 | B7: (silt >= 80 && clay < 12) | C7: SILT
A8: =IF(AND(Triangle!H11>=0.2, Triangle!H11<0.35, Triangle!H13<0.28, Triangle!H9>0.45), 7, 0) -> 0 | B8: ((clay >= 20 && clay < 35) && (silt < 28) && (sand > 45)) | C8: SANDY CLAY LOAM
A9: =IF(AND(Triangle!H11>=0.27, Triangle!H11<0.4, Triangle!H9>0.2, Triangle!H9<=0.45), 8, 0) -> 0 | B9: ((clay >= 27 && clay < 40) && (sand > 20 && sand <= 45)) | C9: CLAY LOAM
A10: =IF(AND(Triangle!H11>=0.27, Triangle!H11<0.4, Triangle!H9<=0.2), 9, 0) -> 0 | B10: ((clay >= 27 && clay < 40) && (sand <= 20)) | C10: SILTY CLAY LOAM
A11: =IF(AND(Triangle!H11>=0.35, Triangle!H9>0.45), 10, 0) -> 0 | B11: (clay >= 35 && sand > 45) | C11: SANDY CLAY
A12: =IF(AND(Triangle!H11>=0.4, Triangle!H13>=0.4), 11, 0) -> 0 | B12: (clay >= 40 && silt >= 40) | C12: SILTY CLAY
A13: =IF(AND(Triangle!H11>=0.4, Triangle!H9<=0.45,Triangle!H13<0.4), 12, 0) -> 0 | B13: (clay >= 40 && sand <= 45 && silt < 40) | C13: CLAY
A14: =SUM(A2:A13) -> 6
A17: Sand
A18: =IF(AND(SUM(Triangle!H17:H25)=Triangle!H9, Triangle!H17+Triangle!H19>=0.25, Triangle!H21<0.5, Triangle!H23<0.5, Triangle!H25<0.5), 1, 0) -> 0 | B18: vcscs >= 25 && ms < 50 && fs < 50 && vfs < 50 | C18: COARSE SAND
A19: =IF(AND(SUM(Triangle!H17:H25)=Triangle!H9,SUM($A$18) = 0, Triangle!H17+Triangle!H19+Triangle!H21>=0.25, Triangle!H17+Triangle!H19<0.25, Triangle!H23<0.5,Triangle!H25<0.5), 2, 0) -> 0 | B19: vcscsms >= 25 && vcscs < 25 && fs < 50 && vfs < 50 | C19: SAND
A20: =IF(AND(SUM(Triangle!H17:H25)=Triangle!H9,SUM($A$18:$A$19) = 0, Triangle!H21>=0.5, Triangle!H17+Triangle!H19>=0.25), 3, 0) -> 0 | B20: ms >= 50 && vcscs >= 25 | C20: SAND
A21: =IF(AND(SUM(Triangle!H17:H25)=Triangle!H9,SUM($A$18:$A$20) = 0, Triangle!H23>=0.5, Triangle!H23>Triangle!H25), 4, 0) -> 0 | B21: fs >= 50 && fs > vfs | C21: FINE SAND
A22: =IF(AND(SUM(Triangle!H17:H25)=Triangle!H9,SUM($A$18:$A$21) = 0, Triangle!H17+Triangle!H19+Triangle!H21<0.25, Triangle!H25<0.5), 5, 0) -> 5 | B22: vcscsms < 25 && vfs < 50 | C22: FINE SAND
A23: =IF(AND(SUM(Triangle!H17:H25)=Triangle!H9,SUM($A$18:$A$22) = 0, Triangle!H25>=0.5), 6, 0) -> 0 | B23: vfs >= 50 | C23: VERY FINE SAND
A24: =SUM(A18:A23)+1 -> 6
A27: Loam Sand
A28: =IF(AND(SUM(Triangle!H17:H25)=Triangle!H9, Triangle!H17+Triangle!H19>=0.25, Triangle!H21<0.5, Triangle!H23<0.5, Triangle!H25<0.5), 1, 0) -> 0 | B28: vcscs >= 25 && ms < 50 && fs < 50 && vfs < 50 | C28: LOAMY COARSE SAND
A29: =IF(AND(SUM(Triangle!H17:H25)=Triangle!H9,SUM($A$28) = 0, Triangle!H17+Triangle!H19+Triangle!H21>=0.25, Triangle!H17+Triangle!H19<0.25, Triangle!H23<0.5,Triangle!H25<0.5), 2, 0) -> 0 | B29: vcscsms >= 25 && vcscs < 25 && fs < 50 && vfs < 50 | C29: LOAMY SAND
A30: =IF(AND(SUM(Triangle!H17:H25)=Triangle!H9,SUM($A$28:$A$29) = 0, Triangle!H21>=0.5, Triangle!H17+Triangle!H19>=0.25),3, 0) -> 0 | B30: ms >= 50 && vcscs >= 25 | C30: LOAMY SAND
A31: =IF(AND(SUM(Triangle!H17:H25)=Triangle!H9,SUM($A$28:$A$30) = 0, Triangle!H23>=0.5), 4, 0) -> 0 | B31: fs >= 50 | C31: LOAMY FINE SAND
A32: =IF(AND(SUM(Triangle!H17:H25)=Triangle!H9,SUM($A$28:$A$31) = 0, Triangle!H17+Triangle!H19+Triangle!H21<0.25, Triangle!H25<0.5), 5, 0) -> 5 | B32: vcscsms < 25 && vfs < 50 | C32: LOAMY FINE SAND
A33: =IF(AND(SUM(Triangle!H17:H25)=Triangle!H9,SUM($A$28:$A$32) = 0, Triangle!H25>=0.5), 6, 0) -> 0 | B33: vfs >= 50 | C33: LOAMY VERY FINE SAND
A34: =SUM(A28:A33)+1 -> 6
A36: Sand Loam
A37: =IF(AND(SUM(Triangle!H17:H25)=Triangle!H9, Triangle!H17+Triangle!H19>=0.25, Triangle!H21<0.5, Triangle!H23<0.5, Triangle!H25<0.5), 1, 0) -> 0 | B37: vcscs >= 25 && ms < 50 && fs < 50 && vfs < 50 | C37: COARSE SANDY LOAM
A38: =IF(AND(SUM(Triangle!H17:H25)=Triangle!H9,SUM($A$37) = 0,Triangle!H17+Triangle!H19+Triangle!H21>=0.3, Triangle!H25>=0.3, Triangle!H25<0.5), 2,0) -> 0 | B38: vcscsms >= 30 && vfs >= 30 && vfs < 50 | C38: COARSE SANDY LOAM
A39: =IF(AND(SUM(Triangle!H17:H25)=Triangle!H9,SUM($A$37:$A$38) = 0, Triangle!H17+Triangle!H19+Triangle!H21>=0.3, Triangle!H17+Triangle!H19<0.25, Triangle!H23<0.3,Triangle!H25<0.3), 3, 0) -> 0 | B39: vcscsms >= 30 && vcscs < 25 && fs < 30 && vfs < 30 | C39: SANDY LOAM
A40: =IF(AND(SUM(Triangle!H17:H25)=Triangle!H9,SUM($A$37:$A$39) = 0,Triangle!H17+Triangle!H19+Triangle!H21<=0.15,Triangle!H23<0.3,Triangle!H25<0.3,Triangle!H23+Triangle!H25<0.4), 4, 0) -> 4 | B40: vcscsms <= 15 && fs < 30 && vfs < 30 && fsvfs < 40 | C40: SANDY LOAM
A41: =IF(AND(SUM(Triangle!H17:H25)=Triangle!H9,SUM($A$37:$A$40) = 0,Triangle!H17+Triangle!H19>=0.25, Triangle!H21>=0.5), 5, 0) -> 0 | B41: vcscs >= 25 && ms >= 50 | C41: SANDY LOAM
A42: =IF(AND(SUM(Triangle!H17:H25)=Triangle!H9,SUM($A$37:$A$41) = 0,Triangle!H23>=0.3,Triangle!H25<0.3, Triangle!H17+Triangle!H19<0.25), 6, 0) -> 0 | B42: fs >= 30 && vfs < 30 && vcscs < 25 | C42: FINE SANDY LOAM
A43: =IF(AND(SUM(Triangle!H17:H25)=Triangle!H9,SUM($A$37:$A$42) = 0,Triangle!H17+Triangle!H19+Triangle!H21>=0.15, Triangle!H17+Triangle!H19+Triangle!H21<0.3, Triangle!H17+Triangle!H19<0.25), 7, 0) -> 0 | B43: vcscsms >= 15 && vcscsms < 30 && vcscs < 25 | C43: FINE SANDY LOAM
A44: =IF(AND(SUM(Triangle!H17:H25)=Triangle!H9,SUM($A$37:$A$43) = 0,Triangle!H23+Triangle!H25>=0.4, Triangle!H23>=Triangle!H25, Triangle!H17+Triangle!H19+Triangle!H21<=0.15), 8, 0) -> 0 | B44: fsvfs >= 40 && fs >= vfs && vcscsms <= 15 | C44: FINE SANDY LOAM
A45: =IF(AND(SUM(Triangle!H17:H25)=Triangle!H9,SUM($A$37:$A$44) = 0,Triangle!H17+Triangle!H19>=0.25, Triangle!H23>=0.5), 9, 0) -> 0 | B45: vcscs >= 25 && fs >= 50 | C45: FINE SANDY LOAM
A46: =IF(AND(SUM(Triangle!H17:H25)=Triangle!H9,SUM($A$37:$A$45) = 0,Triangle!H25>=0.3, Triangle!H17+Triangle!H19+Triangle!H21<0.15, Triangle!H25>Triangle!H23), 10, 0) -> 0 | B46: vfs >= 30 && vcscsms < 15 && vfs > fs | C46: VERY FINE SANDY LOAM
A47: =IF(AND(SUM(Triangle!H17:H25)=Triangle!H9,SUM($A$37:$A$46) = 0,Triangle!H23+Triangle!H25>=0.4, Triangle!H25>Triangle!H23, Triangle!H17+Triangle!H19+Triangle!H21<15), 11, 0) -> 0 | B47: fsvfs >= 40 && vfs > fs && vcscsms < 15 | C47: VERY FINE SANDY LOAM
A48: =IF(AND(SUM(Triangle!H17:H25)=Triangle!H9,SUM($A$37:$A$47) = 0,Triangle!H17+Triangle!H19>=0.25, Triangle!H25>=0.5), 12, 0) -> 0 | B48: vcscs >= 25 && vfs >= 50 | C48: VERY FINE SANDY LOAM
A49: =IF(AND(SUM(Triangle!H17:H25)=Triangle!H9,SUM($A$37:$A$48) = 0,Triangle!H17+Triangle!H19+Triangle!H21>=0.3, Triangle!H25>=0.5), 13,0) -> 0 | B49: vcscsms >= 30 && vfs >= 50 | C49: VERY FINE SANDY LOAM
A50: =SUM(A37:A49)+1 -> 5
